bitfinex/quotes_SOLUSD_20241222
["timestamp","ask_amount","ask_price","bid_price","bid_amount"]
[1734826141936,0.83274627,181.2,181.09,0.82789231]
[1734826142131,0.83274627,181.23,181.1,23.776884]
[1734826142341,0.83274627,181.23,181.11,0.82783814]
[1734826142542,3.59084627,181.28,181.12,54.7073913]
[1734826142742,3.59084627,181.28,181.14,23.776884]
[1734826142939,3.59084627,181.28,181.16,23.776884]
[1734826143129,3.59084627,181.28,181.17,0.82762338]
[1734826144032,0.83274627,181.33,181.18,23.776884]
[1734826144348,2.38844627,181.31,181.2,23.776884]
[1734826144582,6.3905,181.34,181.22,23.776884]
[1734826144854,0.83274627,181.33,181.23,0.82720397]
[1734826145070,0.83274627,181.35,181.24,23.776884]
[1734826145238,6.3905,181.39,181.26,23.776884]
[1734826145427,6.3905,181.39,181.28,23.776884]
[1734826145626,6.3905,181.39,181.26,0.82705465]
[1734826145627,0.83274627,181.38,181.26,0.82705465]
[1734826145827,3.58934627,181.38,181.26,0.82705465]
[1734826146026,9.10254627,181.38,181.23,0.8271664]
[1734826146257,3.58934627,181.38,181.24,23.776884]
[1734826146556,23.776884,181.37,181.22,0.82723703]
[1734826146849,20.0,181.34,181.22,0.82723703]
[1734826147045,0.83274627,181.33,181.19,6.96099496]
[1734826147245,0.83274627,181.33,181.2,23.776884]
[1734826147445,0.83274627,181.33,181.21,0.8274663]
[1734826147640,20.83274627,181.36,181.22,23.776884]
[1734826147835,20.83274627,181.36,181.24,23.776884]
[1734826148042,2.757,181.35,181.21,0.82739959]
[1734826148242,0.83274627,181.34,181.21,0.82739959]
[1734826149140,20.0,181.29,181.18,0.82749489]
[1734826149340,0.83274627,181.28,181.14,0.82763415]
[1734826149858,0.83274627,181.28,181.14,31.75814145]
[1734826150066,20.0,181.24,181.14,0.82763415]
[1734826150245,19.85445121,181.24,181.15,0.82779045]
[1734826150564,0.83274627,181.23,181.15,0.82779045]
[1734826150743,0.83274627,181.23,181.11,0.82760554]
[1734826150947,2.759,181.22,181.09,0.82781212]
[1734826151155,0.83274627,181.21,181.09,0.82781212]
[1734826151464,2.759,181.22,181.09,0.82781212]
[1734826151771,19.85445121,181.24,181.11,30.9305073]
[1734826151945,19.85445121,181.24,181.12,31.75821232]
[1734826152142,6.5426,181.27,181.16,30.9305073]
[1734826152344,1.6192,181.32,181.18,30.9305073]
[1734826152663,2.45194627,181.32,181.19,55.53480323]
[1734826153075,1.6192,181.32,181.19,55.53480323]
[1734826153277,6.5426,181.33,181.21,23.776884]
[1734826153572,0.83274627,181.32,181.22,0.82730741]
[1734826153775,0.83274627,181.32,181.2,0.82739262]
[1734826154278,0.83274627,181.32,181.13,40.2305073]
[1734826154591,20.0,181.28,181.11,0.82773228]
[1734826154750,23.776884,181.26,181.07,1.5268]
[1734826154956,43.776884,181.22,181.07,9.3]
[1734826155147,20.0,181.17,181.05,0.89213213]
[1734826155341,2.7589,181.23,181.07,30.9305073]
[1734826155554,20.83274627,181.22,181.09,30.9305073]
[1734826155883,20.0,181.22,181.11,30.9305073]
[1734826156074,20.0,181.22,181.12,0.82777322]
[1734826156392,0.83274627,181.21,181.12,0.82777322]
[1734826156766,0.83274627,181.21,181.06,0.82792532]
[1734826157164,2.7593,181.2,181.06,0.82792532]
[1734826157389,0.83274627,181.19,181.06,0.82792532]
[1734826157999,20.0,181.22,181.11,54.7073913]
[1734826158295,6.5426,181.25,181.13,23.776884]
[1734826158471,6.5426,181.25,181.15,23.776884]
[1734826159366,0.83274627,181.28,181.17,23.776884]
[1734826159694,2.45194627,181.29,181.18,0.82756441]
[1734826159902,6.3142,181.3,181.19,23.776884]
[1734826160102,6.3142,181.3,181.2,0.82739286]
[1734826160263,3.58994627,181.34,181.21,23.776884]
[1734826160462,3.58994627,181.34,181.23,23.776884]
[1734826161266,0.83274627,181.34,181.25,23.776884]
[1734826161565,2.34294627,181.35,181.24,0.82732403]
[1734826161805,2.34294627,181.35,181.21,23.776884]
[1734826161806,2.7572,181.34,181.21,23.776884]
[1734826161977,0.83274627,181.33,181.2,0.82735618]
[1734826162779,2.7577,181.31,181.19,23.776884]
[1734826162979,0.83274627,181.3,181.16,0.82755452]
[1734826163180,23.776884,181.29,181.14,0.82755452]
[1734826163361,23.776884,181.27,181.11,0.82784344]
[1734826163565,0.83274627,181.26,181.11,0.82784344]
[1734826164165,2.7586,181.25,181.11,0.82784344]
[1734826164367,0.83274627,181.24,181.11,31.75835074]
[1734826164685,0.83274627,181.26,181.12,54.7073913]
[1734826165002,0.83274627,181.26,181.14,23.776884]
[1734826165181,0.83274627,181.26,181.15,0.82763842]
[1734826165505,0.83274627,181.27,181.15,0.82763842]
[1734826166581,0.83274627,181.27,181.16,23.776884]
[1734826166768,20.0,181.25,181.12,0.8276673]
[1734826166978,0.83274627,181.24,181.13,23.776884]
[1734826167292,0.83274627,181.24,181.15,23.776884]
[1734826167596,0.83274627,181.27,181.16,0.82763682]
[1734826167812,2.758,181.29,181.17,23.776884]
[1734826168099,0.83274627,181.28,181.16,0.82750609]
[1734826168297,13.15059805,181.36,181.16,0.82750609]
[1734826168298,2.7577,181.31,181.16,0.82750609]
[1734826168486,2.758,181.29,181.13,0.8276893]
[1734826168706,7.20534627,181.28,181.13,0.8276893]
[1734826169204,20.0,181.25,181.14,31.0559973]
[1734826169383,7.20534627,181.28,181.16,30.9305073]
[1734826169597,7.20534627,181.28,181.17,0.82753662]
[1734826170198,7.20534627,181.28,181.18,23.776884]
[1734826170506,0.83274627,181.32,181.2,23.776884]
[1734826170814,6.3726,181.33,181.23,30.9305073]
[1734826170970,1.5102,181.35,181.26,23.776884]
[1734826171170,1.5102,181.35,181.27,0.82719395]
[1734826171381,1.5102,181.35,181.25,0.82727404]
[1734826171585,1.5102,181.35,181.26,23.776884]
[1734826171792,1.5102,181.35,181.27,0.82715024]
[1734826172098,21.5102,181.35,181.27,0.82715024]
[1734826172803,20.0,181.35,181.27,0.82715024]
[1734826173298,0.83274627,181.34,181.24,23.776884]
[1734826173483,0.83274627,181.34,181.23,0.82714106]
[1734826173986,0.83274627,181.34,181.2,6.1792]
[1734826173987,0.83274627,181.34,181.2,0.82740584]
[1734826174472,0.83274627,181.34,181.2,31.75791314]
[1734826174673,0.83274627,181.34,181.21,23.776884]
[1734826175295,0.83274627,181.34,181.22,0.82739785]
[1734826175500,20.0,181.32,181.19,23.776884]
[1734826175802,0.83274627,181.31,181.2,0.82748863]
[1734826175995,0.83274627,181.31,181.17,0.82748863]
[1734826176193,20.0,181.27,181.15,20.0]
[1734826176381,0.83274627,181.26,181.13,0.82760561]
[1734826176696,0.83274627,181.26,181.1,0.82785901]
[1734826177402,2.7586,181.25,181.1,0.82785901]
[1734826177574,0.83274627,181.24,181.09,0.82790062]
[1734826177775,0.83274627,181.24,181.11,0.82790062]
[1734826177974,0.83274627,181.26,181.12,54.7073913]
[1734826178175,3.18419147,181.23,181.14,23.776884]
[1734826178409,3.18419147,181.23,181.16,23.776884]
[1734826178603,20.0,181.25,181.17,0.82757553]
[1734826178780,20.0,181.27,181.17,0.82757553]
[1734826179102,3.18621689,181.26,181.18,23.776884]
[1734826179293,3.18621689,181.26,181.19,0.82748731]
[1734826179616,4.01896316,181.26,181.14,0.82763472]
[1734826179792,4.01896316,181.26,181.1,0.82778954]
[1734826179987,3.18621689,181.25,181.1,31.75829684]
[1734826180193,3.18621689,181.25,181.13,30.9305073]
[1734826180394,3.18621689,181.24,181.14,31.75813249]
[1734826180590,3.18621689,181.24,181.16,30.9305073]
[1734826180791,3.18621689,181.24,181.17,31.75799027]
[1734826181104,3.18621689,181.23,181.18,23.776884]
[1734826181306,20.0,181.27,181.2,23.776884]
[1734826181510,7.93,181.3,181.22,23.776884]
[1734826181712,0.83274627,181.34,181.21,0.82731919]
[1734826182009,3.1909425,181.33,181.21,0.82731919]
[1734826182188,0.83274627,181.32,181.21,0.82731919]
[1734826182387,3.1909425,181.31,181.21,0.82731919]
[1734826182912,0.83274627,181.34,181.22,23.776884]
[1734826183225,0.83274627,181.34,181.23,0.82735227]
[1734826184613,20.0,181.32,181.23,0.82735227]
[1734826184810,20.0,181.32,181.24,23.776884]
[1734826185005,6.3726,181.35,181.26,23.776884]
[1734826185189,0.83274627,181.34,181.25,0.82723247]
[1734826185899,6.3726,181.35,181.23,23.776884]
[1734826186098,0.83274627,181.34,181.24,0.82724832]
[1734826186398,0.83274627,181.34,181.23,23.776884]
[1734826186697,20.0,181.32,181.23,23.776884]
[1734826187293,20.0,181.32,181.22,23.776884]
[1734826188115,8.29909719,181.31,181.23,0.82735845]
[1734826188302,8.29909719,181.31,181.24,23.776884]
[1734826188500,8.29909719,181.31,181.26,23.776884]
[1734826188906,8.29909719,181.3,181.26,23.776884]
[1734826189418,8.29909719,181.29,181.26,23.776884]
[1734826189646,8.29909719,181.29,181.27,0.82722189]
[1734826189799,8.29909719,181.29,181.28,23.776884]
[1734826190001,6.1339,181.4,181.28,54.7073913]
[1734826190220,6.1339,181.4,181.3,23.776884]
[1734826190427,8.29788893,181.39,181.31,0.82699597]
[1734826190729,8.29788893,181.39,181.28,0.82702574]
[1734826190730,0.83274627,181.38,181.28,0.82702574]
[1734826191124,8.29788893,181.37,181.28,0.82702574]
[1734826191739,5.10639319,181.36,181.26,23.776884]
[1734826191898,8.29788893,181.36,181.27,0.82715814]
[1734826192406,3.19149574,181.35,181.27,0.82715814]
[1734826192921,3.19149574,181.34,181.27,0.82715814]
[1734826193509,3.19149574,181.33,181.27,0.82715814]
[1734826194129,3.19149574,181.32,181.27,0.82715814]
[1734826194421,3.19149574,181.32,181.28,23.776884]
[1734826194624,3.19149574,181.32,181.3,23.776884]
[1734826194819,20.0,181.37,181.31,0.82697783]
[1734826195410,3.18826395,181.36,181.31,0.82697783]
[1734826195901,3.18826395,181.35,181.31,0.82697783]
[1734826196421,20.0,181.37,181.31,0.82697783]
[1734826197155,3.18673129,181.36,181.31,0.82697783]
[1734826197329,3.18673129,181.36,181.32,23.776884]
[1734826197622,3.18673129,181.36,181.34,23.776884]
[1734826197818,5.24794627,181.49,181.36,23.776884]
[1734826198020,13.73736386,181.49,181.35,0.82661428]
[1734826198202,13.73736386,181.49,181.33,23.776884]
[1734826198403,3.18506565,181.48,181.33,23.776884]
[1734826198611,0.83274627,181.47,181.34,0.82686793]
[1734826198803,4.01781192,181.47,181.34,0.82686793]
[1734826199020,20.0,181.46,181.34,0.82686793]
[1734826199219,2.7557,181.44,181.32,23.776884]
[1734826199405,20.0,181.42,181.32,23.776884]
[1734826199608,20.0,181.42,181.34,23.776884]
[1734826199817,23.18506565,181.41,181.35,0.82681632]
[1734826200408,23.18506565,181.41,181.33,0.82685272]
[1734826200614,3.18506565,181.4,181.34,23.776884]
[1734826200822,3.18506565,181.4,181.36,23.776884]
[1734826201118,0.83274627,181.43,181.33,23.776884]
[1734826201522,0.83274627,181.43,181.3,0.82694019]
[1734826201523,3.58864627,181.43,181.3,0.82694019]
[1734826201702,20.0,181.4,181.3,0.82694019]
[1734826202103,3.18216209,181.39,181.31,30.9305073]
[1734826202302,3.18216209,181.39,181.32,31.7573439]
[1734826202525,3.18216209,181.39,181.35,30.9305073]
[1734826202733,3.18216209,181.39,181.37,23.776884]
[1734826202910,3.18216209,181.47,181.38,0.82665821]
[1734826203229,3.18216209,181.46,181.38,0.82665821]
[1734826203528,3.18216209,181.46,181.39,23.776884]
[1734826203708,3.18216209,181.45,181.41,23.776884]
[1734826203898,3.18216209,181.45,181.42,0.82652635]
[1734826204101,3.18216209,181.45,181.41,23.776884]
[1734826204326,3.18216209,181.44,181.4,23.776884]
[1734826204699,3.18216209,181.44,181.41,0.82653443]
[1734826204852,3.18216209,181.48,181.4,23.776884]
[1734826205408,3.18216209,181.47,181.4,23.776884]
[1734826205813,3.18216209,181.47,181.4,24.60347167]
[1734826206433,3.18216209,181.46,181.4,24.60347167]
[1734826206813,3.18216209,181.45,181.4,23.776884]
[1734826207345,0.83274627,181.44,181.32,30.9305073]
[1734826207548,6.77060836,181.44,181.33,0.82682692]
[1734826207751,6.77060836,181.44,181.31,0.82691309]
[1734826207752,20.0,181.41,181.31,0.82691309]
[1734826207947,20.0,181.41,181.29,30.9305073]
[1734826207948,0.83274627,181.4,181.29,0.82697253]
[1734826208239,20.0,181.36,181.27,0.82706968]
[1734826208461,20.0,181.36,181.2,12.2376]
[1734826208462,0.83274627,181.35,181.22,30.9305073]
[1734826208621,24.01490836,181.35,181.23,0.82730044]
[1734826208830,23.18216209,181.35,181.23,31.75780774]
[1734826209023,23.18216209,181.35,181.24,30.9305073]
[1734826209326,3.18216209,181.34,181.25,0.82716407]
[1734826209526,3.18216209,181.34,181.25,31.75767137]
[1734826209762,3.18216209,181.33,181.25,31.75767137]
[1734826210127,3.18216209,181.32,181.26,23.776884]
[1734826210327,3.18216209,181.32,181.28,23.776884]
[1734826210528,3.18216209,181.31,181.28,23.776884]
[1734826210958,20.0,181.36,181.28,23.776884]
[1734826211772,1.6662,181.38,181.3,23.776884]
[1734826211935,3.17887656,181.35,181.3,23.776884]
[1734826212365,3.17887656,181.37,181.3,23.776884]
[1734826212567,3.17887656,181.34,181.3,23.776884]
[1734826213068,3.17887656,181.34,181.27,0.82704991]
[1734826213368,3.17887656,181.33,181.28,0.82726318]
[1734826214032,3.17887656,181.32,181.28,0.82726318]
[1734826214647,3.17887656,181.32,181.29,0.82715958]
[1734826214842,3.17887656,181.31,181.28,23.776884]
[1734826215051,3.17887656,181.31,181.21,0.82724687]
[1734826215232,3.17887656,181.3,181.22,30.9305073]
[1734826215438,3.17887656,181.3,181.23,0.82724061]
[1734826215973,3.17887656,181.29,181.23,31.75774791]
[1734826216179,3.17887656,181.29,181.24,30.9305073]
[1734826216469,3.17887656,181.29,181.26,23.776884]
[1734826216657,3.17887656,181.33,181.27,0.82719051]
[1734826216972,3.17887656,181.33,181.25,23.776884]
[1734826217351,3.17887656,181.32,181.25,23.776884]
[1734826217546,3.17887656,181.32,181.26,0.82725704]
[1734826217750,20.0,181.36,181.27,23.776884]
[1734826217751,3.17887656,181.31,181.27,23.776884]
[1734826218456,3.17887656,181.31,181.26,0.82725704]
[1734826218763,3.17887656,181.31,181.22,30.9305073]
[1734826218764,3.17887656,181.3,181.25,23.776884]
[1734826218969,3.17887656,181.3,181.27,23.776884]
[1734826219172,3.17887656,181.3,181.29,23.776884]
[1734826219472,3.17887656,181.34,181.29,23.776884]
[1734826219665,3.17887656,181.34,181.3,0.82701521]
[1734826219879,3.17887656,181.33,181.3,0.82701521]
[1734826220165,3.17887656,181.33,181.31,23.776884]
[1734826220384,3.17887656,181.33,181.31,0.82692741]
[1734826220673,3.17887656,181.37,181.31,0.82692741]
[1734826220836,3.17887656,181.37,181.32,23.776884]
[1734826221039,3.17887656,181.37,181.33,0.82690848]
[1734826221353,3.17887656,181.36,181.33,0.82690848]
[1734826221552,3.17887656,181.36,181.34,54.7073913]
[1734826221762,3.17887656,181.42,181.35,55.53408704]
[1734826221967,3.17887656,181.42,181.36,23.776884]
[1734826222259,3.17887656,181.42,181.33,23.776884]
[1734826222458,3.17887656,181.41,181.33,23.776884]
[1734826222654,3.17887656,181.41,181.35,23.776884]
[1734826222966,3.17887656,181.41,181.37,23.776884]
[1734826223173,3.17887656,181.4,181.39,23.776884]
[1734826223335,3.17887656,181.4,181.39,54.7073913]
[1734826223551,3.17887656,181.48,181.4,0.12549]
[1734826223750,3.17887656,181.48,181.41,54.7073913]
[1734826223977,3.17887656,181.48,181.43,23.776884]
[1734826224158,3.17887656,181.47,181.45,23.776884]
[1734826224361,3.17887656,181.47,181.46,24.60313688]
[1734826224560,3.17887656,181.47,181.46,0.82625288]
[1734826224759,0.6398696,181.5,181.44,23.776884]
[1734826224967,0.6398696,181.5,181.45,0.82637127]
[1734826225273,3.18596687,181.49,181.45,0.82637127]
[1734826225475,3.18596687,181.49,181.46,23.776884]
[1734826225682,3.18596687,181.49,181.47,0.82628318]
[1734826225888,3.18596687,181.48,181.46,23.776884]
[1734826226092,3.18596687,181.48,181.47,24.60317337]
[1734826226455,0.6398696,181.5,181.48,23.776884]
[1734826226658,0.6398696,181.5,181.49,24.60310478]
[1734826227850,0.6398696,181.5,181.49,55.53361208]
[1734826228377,0.6398696,181.5,181.49,24.60310478]
[1734826229156,0.6398696,181.5,181.49,55.53361208]
[1734826230061,0.6398696,181.5,181.49,24.60310478]
[1734826230961,6.96e-05,181.5,181.49,55.65910208]
[1734826235394,6.96e-05,181.5,181.49,0.82622078]
[1734826235569,6.96e-05,181.5,181.47,0.8262266]
[1734826236791,6.96e-05,181.5,181.48,23.776884]
[1734826237711,6.96e-05,181.5,181.45,31.75675259]
[1734826238008,6.96e-05,181.5,181.45,0.82624529]
[1734826238160,6.96e-05,181.5,181.42,0.82648604]
[1734826238576,3.17134272,181.49,181.42,31.75699334]
[1734826238963,0.83274627,181.48,181.37,0.82646267]
[1734826239199,4.00408899,181.48,181.34,0.82667185]
[1734826239774,3.17134272,181.47,181.34,0.82667185]
[1734826239972,20.0,181.42,181.34,0.82667185]
[1734826240176,20.83274627,181.42,181.32,0.82681641]
[1734826240378,3.17134272,181.41,181.28,0.82694639]
[1734826240605,20.83274627,181.4,181.24,30.9305073]
[1734826240782,24.00408899,181.4,181.25,0.82721634]
[1734826240979,20.0,181.36,181.25,20.0]
[1734826241301,0.83274627,181.35,181.2,0.82741367]
[1734826241505,20.0,181.31,181.2,0.82741367]
[1734826241682,0.83274627,181.3,181.17,0.82743831]
[1734826241883,20.0,181.31,181.2,30.9305073]
[1734826242083,3.17134272,181.29,181.21,0.82738551]
[1734826242282,3.17134272,181.28,181.21,0.82738551]
[1734826242515,3.17134272,181.28,181.21,31.75789281]
[1734826242678,3.17134272,181.28,181.22,30.9305073]
[1734826242873,20.0,181.31,181.23,0.82729914]
[1734826243379,3.16925127,181.3,181.23,0.82729914]
[1734826243873,3.16925127,181.29,181.23,0.82729914]
[1734826244594,20.0,181.31,181.23,0.82729914]
[1734826245186,3.16777941,181.3,181.23,0.82729914]
[1734826245490,4.00052568,181.3,181.21,0.82738481]
[1734826245693,3.16777941,181.3,181.22,23.776884]
[1734826245996,3.16777941,181.29,181.22,23.776884]
[1734826246203,3.16777941,181.29,181.24,23.776884]
[1734826246405,3.16777941,181.29,181.22,23.776884]
[1734826246701,3.16777941,181.28,181.22,23.776884]
[1734826246878,3.16777941,181.28,181.23,0.82745281]
[1734826247597,20.0,181.31,181.23,0.82745281]
[1734826248000,0.83274627,181.3,181.16,30.9305073]
[1734826248184,3.59054627,181.3,181.15,31.75792551]
[1734826248383,3.59054627,181.3,181.15,0.82741821]
[1734826248384,20.0,181.27,181.15,0.82741821]
[1734826248601,3.16551877,181.3,181.19,30.9305073]
[1734826248784,23.16551877,181.3,181.2,31.75790734]
[1734826248985,3.16551877,181.26,181.23,30.9305073]
[1734826249186,3.16551877,181.26,181.24,0.82723889]
[1734826249512,6.5801,181.34,181.24,0.82723889]
[1734826249739,6.5801,181.34,181.25,23.776884]
[1734826249905,1.5015,181.38,181.28,30.9305073]
[1734826250091,6.4783,181.41,181.3,30.9305073]
[1734826250410,3.16386055,181.37,181.32,23.776884]
[1734826250979,6.4783,181.41,181.32,23.776884]
[1734826251209,6.4783,181.41,181.33,0.82698762]
[1734826251393,3.16416094,181.4,181.34,23.776884]
[1734826251595,3.16416094,181.4,181.36,23.776884]
[1734826251791,3.16416094,181.4,181.38,23.776884]
[1734826252112,1.5015,181.51,181.4,23.776884]
[1734826252297,1.5015,181.51,181.41,0.8265239]
[1734826252487,1.5015,181.51,181.42,23.776884]
[1734826252798,0.83274627,181.53,181.44,23.776884]
[1734826252799,3.16429095,181.5,181.44,23.776884]
[1734826253210,3.16429095,181.49,181.44,23.776884]
[1734826253708,3.16429095,181.52,181.44,23.776884]
[1734826254082,20.0,181.51,181.44,23.776884]
[1734826254290,3.16429095,181.5,181.44,23.776884]
[1734826255023,3.16429095,181.49,181.46,23.776884]
[1734826255508,6.4783,181.54,181.46,23.776884]
[1734826256289,3.16354476,181.53,181.46,23.776884]
[1734826256902,3.16354476,181.52,181.46,23.776884]
[1734826257299,6.4783,181.54,181.46,23.776884]
[1734826257507,0.83274627,181.53,181.41,20.0]
[1734826257809,20.0,181.51,181.42,0.82647914]
[1734826258310,3.16298106,181.5,181.42,0.82647914]
[1734826258612,3.16298106,181.5,181.43,0.8264622]
[1734826258911,20.0,181.51,181.43,0.8264622]
[1734826259718,2.7537,181.58,181.45,23.776884]
[1734826260013,0.83274627,181.57,181.47,23.776884]
[1734826260217,7.9798,181.59,181.49,23.776884]
[1734826260218,6.4783,181.59,181.49,23.776884]
[1734826260395,3.16380231,181.58,181.5,0.82606373]
[1734826260595,3.16380231,181.58,181.51,23.776884]
[1734826260801,3.16380231,181.58,181.53,23.776884]
[1734826261002,8.81254627,181.65,181.55,23.776884]
[1734826261412,3.16410895,181.64,181.55,23.776884]
[1734826261591,3.16410895,181.64,181.57,23.776884]
[1734826261798,0.83274627,181.63,181.54,0.82581047]
[1734826262105,3.16410895,181.63,181.55,23.776884]
[1734826262720,23.16410895,181.62,181.55,23.776884]
[1734826263305,3.16410895,181.61,181.55,23.776884]
[1734826263504,3.16410895,181.61,181.52,0.82593917]
[1734826263505,3.99685522,181.61,181.52,0.82593917]
[1734826263707,23.99685522,181.61,181.51,23.776884]
[1734826263921,23.99685522,181.61,181.5,0.82611081]
[1734826263922,23.16410895,181.61,181.53,23.776884]
[1734826264117,3.16410895,181.6,181.53,23.776884]
[1734826264514,3.16410895,181.59,181.53,23.776884]
[1734826264919,3.16410895,181.59,181.46,32.5118073]
[1734826265098,0.83274627,181.58,181.47,0.82618535]
[1734826265419,0.83274627,181.61,181.47,0.82618535]
[1734826265799,23.16033592,181.6,181.47,0.82618535]
[1734826265999,23.16033592,181.6,181.48,30.9305073]
[1734826266293,3.16033592,181.59,181.5,23.776884]
[1734826266496,3.16033592,181.59,181.52,23.776884]
[1734826266724,3.99308219,181.59,181.49,0.82602905]
[1734826266907,3.16033592,181.58,181.5,23.776884]
[1734826267397,0.83274627,181.57,181.44,23.776884]
[1734826267592,0.83274627,181.57,181.46,23.776884]
[1734826267593,3.99308219,181.57,181.46,23.776884]
[1734826267825,3.99308219,181.57,181.45,0.82630856]
[1734826268029,23.16033592,181.56,181.45,0.82630856]
[1734826268204,0.83274627,181.55,181.45,0.82630856]
[1734826268523,3.16033592,181.54,181.46,0.82639162]
[1734826268820,3.16033592,181.54,181.46,31.75689892]
[1734826269029,2.33424627,181.6,181.46,31.75689892]
[1734826269198,2.33424627,181.6,181.47,23.776884]
[1734826269399,2.33424627,181.6,181.49,23.776884]
[1734826269810,3.15877211,181.59,181.51,23.776884]
[1734826270120,3.15877211,181.59,181.53,23.776884]
[1734826270506,3.15877211,181.58,181.53,23.776884]
[1734826270811,3.15877211,181.58,181.5,23.776884]
[1734826271002,0.83274627,181.64,181.52,23.776884]
[1734826271203,0.83274627,181.64,181.53,0.8259834]
[1734826271503,3.1573936,181.63,181.54,23.776884]
[1734826272015,3.1573936,181.62,181.54,23.776884]
[1734826272416,23.1573936,181.62,181.55,0.82594828]
[1734826272614,20.0,181.62,181.55,0.82594828]
[1734826272993,3.1573936,181.61,181.55,0.82594828]
[1734826273494,8.01,181.65,181.56,23.776884]
[1734826273727,8.01,181.65,181.57,0.82582114]
[1734826274103,3.15598292,181.64,181.57,0.82582114]
[1734826274613,3.15598292,181.63,181.58,23.776884]
[1734826274929,6.4783,181.65,181.59,0.82573214]
[1734826275241,6.4783,181.65,181.57,23.776884]
[1734826276136,6.4783,181.65,181.57,0.82583244]
[1734826276837,6.4783,181.65,181.58,23.776884]
[1734826277028,6.4783,181.65,181.59,0.82575636]
[1734826278134,1.53665197,181.68,181.59,0.82575636]
[1734826278135,0.7039057,181.68,181.6,23.776884]
[1734826278310,0.7039057,181.68,181.63,30.9305073]
[1734826278512,16.20909293,181.77,181.67,54.7073913]
[1734826278720,16.20909293,181.77,181.69,23.776884]
[1734826278721,6.661,181.77,181.69,23.776884]
[1734826278927,1.5317,181.81,181.71,23.776884]
[1734826279122,0.83274627,181.8,181.71,23.776884]
[1734826279335,3.98551848,181.8,181.71,23.776884]
[1734826279819,3.15277221,181.79,181.71,23.776884]
[1734826280019,3.15277221,181.79,181.72,0.82519714]
[1734826280343,6.661,181.82,181.73,54.7073913]
[1734826280344,3.15277221,181.78,181.73,54.7073913]
[1734826280507,3.15277221,181.78,181.73,23.776884]
[1734826280844,6.661,181.82,181.73,23.776884]
[1734826281147,0.83274627,181.81,181.67,23.776884]
[1734826281631,20.0,181.79,181.69,23.776884]
[1734826281807,20.83274627,181.79,181.7,0.8252362]
[1734826282131,3.14466135,181.78,181.71,23.776884]
[1734826282339,3.14466135,181.78,181.72,0.82509286]
[1734826283829,6.661,181.82,181.73,23.776884]
[1734826284011,6.661,181.82,181.72,0.82509286]
[1734826284012,0.83274627,181.81,181.72,0.82509286]
[1734826284216,3.97208176,181.81,181.72,0.82509286]
[1734826284706,3.97208176,181.81,181.67,23.776884]
[1734826284707,20.0,181.79,181.67,23.776884]
[1734826284906,0.83274627,181.78,181.67,23.776884]
[1734826285239,3.13933549,181.77,181.62,30.9305073]
[1734826285419,0.83274627,181.76,181.63,0.82545862]
[1734826285740,3.97208176,181.76,181.63,0.82545862]
[1734826286339,3.13933549,181.75,181.63,0.82545862]
[1734826286509,3.13933549,181.75,181.64,23.776884]
[1734826286709,3.13933549,181.74,181.66,23.776884]
[1734826286934,3.13933549,181.74,181.67,0.82531903]
[1734826287267,0.83274627,181.78,181.69,30.9305073]
[1734826287532,0.83274627,181.81,181.7,55.53252796]
[1734826287701,0.83274627,181.81,181.7,24.60202066]
[1734826287904,3.13722184,181.8,181.7,0.82513666]
[1734826288116,0.83274627,181.79,181.69,0.82528987]
[1734826288321,3.13722184,181.78,181.69,0.82528987]
[1734826288819,20.0,181.79,181.69,0.82528987]
[1734826289147,20.83274627,181.78,181.65,0.82525683]
[1734826289311,1.5026,181.77,181.65,0.82525683]
[1734826289509,20.0,181.74,181.62,31.75602154]
[1734826289808,3.96996811,181.73,181.62,31.75602154]
[1734826290229,3.96996811,181.73,181.63,30.9305073]
[1734826290434,3.13722184,181.72,181.65,30.9305073]
[1734826290631,3.13722184,181.72,181.66,0.82533386]
[1734826290838,3.13722184,181.73,181.66,0.82533386]
[1734826291344,3.13722184,181.72,181.66,0.82533386]
[1734826291545,3.13722184,181.72,181.66,31.75584116]
[1734826291919,3.13722184,181.76,181.66,31.75584116]
[1734826292118,3.13722184,181.76,181.66,0.82533386]
[1734826292429,20.0,181.74,181.64,0.82536605]
[1734826292628,0.83274627,181.73,181.64,0.82536605]
[1734826292944,3.13722184,181.75,181.64,31.75587335]
[1734826292945,3.13722184,181.72,181.64,31.75587335]
[1734826293130,3.13722184,181.72,181.65,30.9305073]
[1734826293440,3.13722184,181.72,181.67,30.9305073]
[1734826293647,3.13722184,181.71,181.68,31.75578608]
[1734826294150,3.13722184,181.7,181.68,31.75578608]
[1734826294841,0.83274627,181.8,181.68,31.75578608]